bitfinex/quotes_ETHUSD_20220120
["timestamp","ask_amount","ask_price","bid_price","bid_amount"]
[1642709269468,2.28152782,3211.1,3210.6,0.0022737]
[1642709269669,2.28152782,3211.0,3210.6,0.0022737]
[1642709269866,0.00170527,3211.3,3210.6,0.0022737]
[1642709270468,5.02481416,3211.3,3210.6,0.0022737]
[1642709270713,2.28078984,3211.2,3210.6,0.0022737]
[1642709270912,2.58078984,3211.2,3210.6,0.0022737]
[1642709271112,2.28078984,3211.1,3210.6,0.0022737]
[1642709271316,2.28078984,3211.1,3210.4,0.00341054]
[1642709271516,2.28078984,3211.0,3210.5,0.00284212]
[1642709271714,2.74980495,3211.3,3210.5,0.00284212]
[1642709271715,2.28078984,3210.9,3210.5,0.00284212]
[1642709271912,0.00170527,3211.3,3210.4,0.12791054]
[1642709272118,0.00170527,3211.3,3210.5,0.28670059]
[1642709272316,0.00170527,3211.3,3210.6,0.1245]
[1642709272515,0.00170527,3211.3,3210.7,0.28670059]
[1642709272718,0.00170527,3211.3,3210.7,0.28840586]
[1642709272917,0.00170527,3211.3,3210.8,0.41233744]
[1642709273118,0.00170527,3211.3,3210.8,0.00113685]
[1642709273520,0.00170527,3211.3,3210.7,0.1245]
[1642709273822,0.00170527,3211.3,3210.8,0.00113685]
[1642709274481,2.73855226,3211.3,3210.8,0.00113685]
[1642709274772,2.28301262,3211.2,3210.4,0.00341054]
[1642709274973,2.28301262,3211.1,3210.4,0.00341054]
[1642709275173,2.28301262,3211.0,3210.4,0.00341054]
[1642709275374,0.00170527,3211.3,3210.4,0.00341054]
[1642709275375,2.28301262,3210.9,3210.4,0.00341054]
[1642709275574,2.28301262,3210.8,3210.4,0.00341054]
[1642709275772,4.03589544,3211.3,3210.2,2.29953108]
[1642709275773,2.80203194,3211.3,3210.2,2.29953108]
[1642709275972,0.00170527,3210.7,3210.2,2.29953108]
[1642709276172,0.00454738,3211.2,3210.2,3.29953108]
[1642709276373,0.00113684,3210.6,3210.2,3.29953108]
[1642709276576,0.00397896,3211.1,3210.2,3.29953108]
[1642709276772,0.00568423,3211.4,3210.2,3.29953108]
[1642709276970,0.00341054,3211.0,3210.2,3.29953108]
[1642709277171,0.00511581,3211.3,3210.2,3.29953108]
[1642709277374,0.00284211,3210.9,3210.2,3.29953108]
[1642709277573,0.00454738,3211.2,3210.2,3.29953108]
[1642709277775,0.00227369,3210.8,3210.2,4.07817108]
[1642709277972,0.00285538,3211.5,3210.2,4.07817108]
[1642709277973,0.00397896,3211.1,3210.2,4.07817108]
[1642709278208,0.00170527,3210.7,3210.2,4.07817108]
[1642709278416,0.00341054,3211.0,3210.2,3.29953108]
[1642709278614,0.00113684,3210.6,3210.2,3.29953108]
[1642709278814,0.00284211,3210.9,3210.2,3.59953108]
[1642709279014,3.18580117,3211.4,3210.2,3.59953108]
[1642709279219,0.00227369,3210.8,3210.2,3.59953108]
[1642709279417,0.00511581,3211.3,3210.2,3.59953108]
[1642709279614,0.00170527,3210.7,3210.2,3.59953108]
[1642709279815,0.00454738,3211.2,3210.2,3.59953108]
[1642709280015,0.00113684,3210.6,3210.2,3.59953108]
[1642709280215,0.00397896,3211.1,3210.2,3.59953108]
[1642709280417,0.00511581,3211.3,3210.2,3.59953108]
[1642709280620,0.00341054,3211.0,3210.2,3.59953108]
[1642709280818,0.00454738,3211.2,3210.2,3.59953108]
[1642709281019,0.00284211,3210.9,3210.2,3.59953108]
[1642709281320,0.00227369,3210.8,3210.2,2.29953108]
[1642709281723,0.00170527,3210.7,3210.5,0.0034546]
[1642709282164,0.00113684,3210.6,3210.5,0.0034546]
[1642709286713,0.00113684,3210.6,3210.5,0.00346641]
[1642709288915,0.00113684,3210.6,3210.5,2.55346641]
[1642709290263,0.00113684,3210.6,3210.5,0.00346641]
[1642709291068,0.00113684,3210.6,3210.5,3.10346641]
[1642709291472,0.00113684,3210.6,3210.5,6.0322686]
[1642709291674,0.00113684,3210.6,3210.5,3.1066975]
[1642709291868,0.00113684,3210.6,3210.5,7.09079904]
[1642709292666,0.00113684,3210.6,3210.5,4.04079904]
[1642709293515,0.00113684,3210.6,3210.5,0.94079904]
[1642709295313,0.00113684,3210.6,3210.5,0.0066975]
[1642709295714,0.00113684,3210.6,3210.5,0.23524861]
[1642709295914,0.00113684,3210.6,3210.5,3.08524861]
[1642709296316,0.00113684,3210.6,3210.5,4.12580306]
[1642709296516,0.00113684,3210.6,3210.5,5.12580306]
[1642709296716,0.00113684,3210.6,3210.5,5.12257197]
[1642709298366,0.00010036,3210.6,3210.5,5.12257197]
[1642709298565,0.00010036,3210.6,3210.5,4.08201752]
[1642709298768,0.00010036,3210.6,3210.5,1.23201752]
[1642709299168,0.00010036,3210.6,3210.5,0.23201752]
[1642709303117,2.34515064,3210.6,3210.5,0.23201752]
[1642709303717,0.00010036,3210.6,3210.5,0.23201752]
[1642709307771,2.34515064,3210.6,3210.5,0.23201752]
[1642709307968,0.00010036,3210.6,3210.5,0.23201752]
[1642709311969,1.53595953,3211.2,3211.0,4.86860753]
[1642709312163,0.3,3211.1,3211.0,4.86860753]
[1642709313065,1.83595953,3211.1,3211.0,4.86860753]
[1642709316510,3.24895767,3211.1,3211.0,4.86860753]
[1642709316710,3.24895767,3211.1,3211.0,4.87185309]
[1642709317313,1.83595953,3211.1,3211.0,4.87185309]
[1642709318416,4.73702525,3211.1,3211.0,4.87185309]
[1642709318617,6.81232525,3211.1,3211.0,4.87185309]
[1642709319014,7.80641238,3211.1,3211.0,4.87185309]
[1642709319215,7.67564138,3211.1,3211.0,4.87185309]
[1642709319469,6.68155425,3211.1,3211.0,4.87185309]
[1642709319660,6.80605425,3211.1,3211.0,4.87185309]
[1642709319860,6.96123425,3211.1,3211.0,4.87185309]
[1642709320061,4.65459278,3211.1,3211.0,0.64280525]
[1642709320361,6.95699701,3211.1,3211.0,0.64280525]
[1642709320567,4.49941278,3211.1,3211.0,0.64280525]
[1642709320762,1.8715,3211.1,3211.0,0.64280525]
[1642709320963,3.407409,3211.1,3211.0,0.64280525]
[1642709321563,2.407409,3211.1,3211.0,0.64280525]
[1642709321760,3.407409,3211.1,3211.0,0.64280525]
[1642709321961,2.407409,3211.1,3211.0,0.64280525]
[1642709322162,2.282909,3211.1,3211.0,0.64280525]
[1642709322763,0.747,3211.1,3211.0,0.64280525]
[1642709323217,0.447,3211.1,3211.0,0.64280525]
[1642709323420,1.535909,3211.3,3211.0,0.64280525]
[1642709324320,1.535909,3211.1,3211.0,0.64280525]
[1642709324719,1.53875112,3211.1,3211.0,0.64280525]
[1642709325120,0.00284212,3211.1,3211.0,0.64280525]
[1642709326522,0.00284212,3211.1,3211.0,0.64581553]
[1642709329469,1.53875112,3211.1,3211.0,0.64581553]
[1642709329769,0.00284212,3211.1,3211.0,0.64581553]
[1642709330168,0.12734212,3211.1,3211.0,0.64581553]
[1642709331323,0.00284212,3211.1,3211.0,0.64581553]
[1642709331723,0.00284212,3211.1,3211.0,0.64280525]
[1642709331921,2.53097537,3211.1,3211.0,0.64280525]
[1642709332121,3.53097537,3211.1,3211.0,0.64280525]
[1642709332523,2.23097537,3211.1,3211.0,0.64280525]
[1642709332726,3.76856131,3211.1,3211.0,0.64280525]
[1642709332926,3.64406131,3211.1,3211.0,0.64280525]
[1642709334765,3.94406131,3211.1,3211.0,0.64280525]
[1642709335363,4.06856131,3211.1,3211.0,0.64280525]
[1642709335561,3.76856131,3211.1,3211.0,0.64280525]
[1642709335964,3.64406131,3211.1,3211.0,0.64280525]
[1642709337763,6.9123562,3211.1,3211.0,0.64280525]
[1642709338214,3.64406131,3211.1,3211.0,0.64280525]
[1642709338616,3.94406131,3211.1,3211.0,0.64280525]
[1642709340421,5.26664455,3211.1,3211.0,0.64280525]
[1642709341621,5.26664455,3211.1,3211.0,0.64195546]
[1642709341622,6.26664455,3211.1,3211.0,0.64195546]
[1642709342063,8.56904878,3211.1,3211.0,0.64195546]
[1642709342262,3.40647537,3211.1,3211.0,0.64195546]
[1642709342464,6.38936105,3211.1,3211.0,0.64195546]
[1642709342862,6.38936105,3211.1,3211.0,3.74195546]
[1642709343468,3.53097537,3211.1,3211.0,3.74195546]
[1642709344272,2.53097537,3211.1,3211.0,3.74195546]
[1642709344469,2.53097537,3211.1,3211.0,3.74115165]
[1642709344669,2.40647537,3211.1,3211.0,3.74115165]
[1642709344870,2.10647537,3211.1,3211.0,3.74115165]
[1642709347221,2.40647537,3211.1,3211.0,3.74115165]
[1642709348824,5.36448897,3211.1,3211.0,3.74115165]
[1642709349229,6.36448897,3211.1,3211.0,3.74115165]
[1642709349471,3.40647537,3211.1,3211.0,3.74115165]
[1642709352876,5.7088796,3211.1,3211.0,3.74115165]
[1642709353073,6.0088796,3211.1,3211.0,3.74115165]
[1642709353322,3.70647537,3211.1,3211.0,3.74115165]
[1642709353926,2.40647537,3211.1,3211.0,3.74115165]
[1642709354123,2.70647537,3211.1,3211.0,3.74115165]
[1642709354723,2.70363325,3211.1,3211.0,3.74115165]
[1642709357473,2.40363325,3211.1,3211.0,3.74115165]
[1642709358679,1.83568675,3211.1,3211.0,3.74115165]
[1642709358879,3.93932,3211.1,3211.0,3.74115165]
[1642709359282,2.40363325,3211.1,3211.0,3.74115165]
[1642709359483,3.93948835,3211.1,3211.0,3.74115165]
[1642709361824,2.40363325,3211.1,3211.0,3.74115165]
[1642709363024,5.25028057,3211.1,3211.0,3.74115165]
[1642709363224,2.40363325,3211.1,3211.0,3.74115165]
[1642709367075,2.40363325,3211.1,3211.0,3.7402018]
[1642709369221,7.56031769,3211.1,3211.0,3.7402018]
[1642709369422,4.70603748,3211.1,3211.0,3.7402018]
[1642709369927,2.40363325,3211.1,3211.0,3.7402018]
[1642709370525,5.22809312,3211.1,3211.0,3.7402018]
[1642709370825,2.40363325,3211.1,3211.0,3.7402018]
[1642709371428,4.70603748,3211.1,3211.0,3.7402018]
[1642709371831,3.93924984,3211.1,3211.0,3.7402018]
[1642709372072,3.93948524,3211.1,3211.0,3.7402018]
[1642709372671,2.40363325,3211.1,3211.0,3.7402018]
[1642709372869,2.10363325,3211.1,3211.0,4.89045089]
[1642709373475,1.10363325,3211.1,3211.0,4.89045089]
[1642709374274,1.40363325,3211.1,3211.0,4.89045089]
[1642709374675,1.40363325,3211.1,3211.0,4.84045089]
[1642709374875,1.40363325,3211.1,3211.0,3.6902018]
[1642709376023,1.20579883,3211.1,3211.0,4.69440125]
[1642709376420,1.20579883,3211.1,3211.0,3.6902018]
[1642709377019,1.20484847,3211.1,3211.0,3.6902018]
[1642709387774,0.90579883,3211.1,3211.0,3.6902018]
[1642709391618,1.20579883,3211.1,3211.0,3.6902018]
[1642709398625,0.90579883,3211.1,3211.0,3.6902018]
[1642709401733,0.90579883,3211.1,3211.0,3.68921997]
[1642709406730,0.90579883,3211.1,3211.0,5.26580065]
[1642709406927,0.90579883,3211.1,3211.0,5.56580065]
[1642709408530,0.90579883,3211.1,3211.0,6.34419065]
[1642709408733,0.90579883,3211.1,3211.0,5.56580065]
[1642709408930,0.90579883,3211.1,3211.0,8.36373001]
[1642709409128,0.90579883,3211.1,3211.0,8.48823001]
[1642709409969,0.90579883,3211.1,3211.0,5.69030065]
[1642709410369,0.90579883,3211.1,3211.0,8.4266044]
[1642709410769,5.169,3211.8,3211.1,0.77842]
[1642709410973,1.99655465,3211.7,3211.2,4.0900732]
[1642709411170,2.00280731,3211.7,3211.2,4.0900732]
[1642709411373,2.00280731,3211.7,3211.3,1.0]
[1642709411570,2.00280731,3211.7,3211.4,0.57658068]
[1642709411571,1.99655465,3211.6,3211.4,0.57658068]
[1642709411974,0.00511582,3211.5,3211.4,0.57658068]
[1642709412176,2.00167047,3211.5,3211.4,2.9]
[1642709412374,2.00167047,3211.5,3211.4,3.47658068]
[1642709412573,2.00167047,3211.5,3211.4,5.93077142]
[1642709412774,2.00167047,3211.5,3211.4,4.93077142]
[1642709412974,2.00167047,3211.5,3211.4,5.93077142]
[1642709415826,2.00167047,3211.5,3211.4,8.79444633]
[1642709416033,1.53585199,3212.5,3211.5,6.15]
[1642709416232,1.53585199,3212.5,3211.6,4.68710398]
[1642709416435,1.53585199,3212.5,3211.7,0.5715]
[1642709416630,1.53585199,3212.6,3211.7,0.5715]
[1642709416834,1.53585199,3212.8,3211.8,0.9923559]
[1642709417079,0.00682108,3212.7,3211.9,0.5715]
[1642709417281,0.00682108,3212.7,3212.1,0.77819]
[1642709417584,0.00625265,3212.6,3212.3,1.10020723]
[1642709417980,0.00568423,3212.5,3212.3,1.40020723]
[1642709418381,0.00511581,3212.4,3212.3,1.40020723]
[1642709418582,0.00511581,3212.4,3212.3,5.25020723]
[1642709418784,0.00795792,3212.4,3212.3,5.25020723]
[1642709418985,0.00795792,3212.4,3212.3,6.25020723]
[1642709419382,0.00091357,3212.4,3212.3,6.25020723]
[1642709419585,0.00091357,3212.4,3212.3,9.53871882]
[1642709419782,0.00091357,3212.4,3212.3,9.41421882]
[1642709421234,0.00091357,3212.4,3212.3,5.26421882]
[1642709421439,0.00091357,3212.4,3212.3,2.1027042]
[1642709421639,0.00091357,3212.4,3212.3,1.10804947]
[1642709422834,0.00091357,3212.4,3212.3,1.40804947]
[1642709423235,0.00091357,3212.4,3212.3,4.50804947]
[1642709423436,0.00091357,3212.4,3212.3,4.20804947]
[1642709426680,0.00091357,3212.4,3212.3,4.20549302]
[1642709429131,0.00091357,3212.4,3212.3,5.20549302]
[1642709429331,0.00091357,3212.4,3212.3,4.32999302]
[1642709429535,0.00091357,3212.4,3212.3,4.20549302]
[1642709429733,0.00091357,3212.4,3212.3,3.10528579]
[1642709430134,0.75464633,3212.2,3211.3,3.9754]
[1642709430531,0.75464633,3212.2,3211.4,0.00511581]
[1642709430532,1.05464633,3212.2,3211.4,0.00511581]
[1642709430736,1.05464633,3212.2,3211.8,1.06435736]
[1642709431134,1.05464633,3212.2,3211.9,0.00227369]
[1642709431633,1.05602918,3212.2,3211.9,0.00227369]
[1642709432883,1.05602918,3212.2,3211.6,0.00397896]
[1642709433182,0.1245,3212.1,3211.6,0.00397896]
[1642709433982,0.1245,3212.1,3211.6,3.10397896]
[1642709434383,1.98882918,3212.2,3211.7,0.00341054]
[1642709434588,0.1245,3212.1,3211.7,0.00341054]
[1642709436043,1.78562764,3212.0,3211.7,0.00341054]
[1642709436344,2.08562764,3212.0,3211.7,0.00341054]
[1642709436543,1.78562764,3211.9,3211.7,0.00341054]
[1642709438647,2.56426364,3211.9,3211.7,0.00341054]
[1642709438849,4.38562764,3211.8,3211.7,0.00341054]
[1642709439048,2.08562764,3211.8,3211.7,0.00341054]
[1642709441677,2.0870121,3211.8,3211.7,0.00648236]
[1642709446238,2.0870121,3211.8,3211.7,0.00317509]
[1642709447281,2.0870121,3211.8,3211.7,0.00440031]
[1642709447586,1.7870121,3211.8,3211.7,0.00440031]
[1642709448783,1.7870121,3211.8,3211.7,1.10696667]
[1642709451731,1.78562764,3211.8,3211.7,1.10696667]
[1642709452531,1.28562764,3211.8,3211.7,1.10696667]
[1642709453637,1.28562764,3211.8,3211.7,0.00440031]
[1642709455382,1.58562764,3211.8,3211.7,0.00440031]
[1642709456782,1.28562764,3211.8,3211.7,0.00440031]
[1642709458835,1.28562764,3211.8,3211.7,2.83583921]
[1642709459036,1.28562764,3211.8,3211.7,3.83583921]
[1642709459333,1.28562764,3211.8,3211.7,1.00440031]
[1642709460632,1.28562764,3211.8,3211.7,3.77319699]
[1642709461232,1.28562764,3211.8,3211.7,1.00440031]
[1642709461834,1.28562764,3211.8,3211.7,1.30440031]
[1642709462577,1.28562764,3211.8,3211.7,4.17775811]
[1642709462783,0.75464633,3212.2,3211.7,4.92475811]
[1642709462982,0.75464633,3212.2,3211.9,0.77822]
[1642709463178,0.00217043,3212.1,3212.0,2.89927007]
[1642709463379,0.00217043,3212.1,3212.0,2.86181557]
[1642709463580,0.00217043,3212.1,3212.0,3.80667244]
[1642709463779,0.00217043,3212.1,3212.0,4.98466219]
[1642709464080,0.00217043,3212.1,3212.0,4.79553962]
[1642709464278,0.00217043,3212.1,3212.0,0.99378497]
[1642709465180,0.00217043,3212.1,3212.0,2.41945097]
[1642709466632,0.00217043,3212.1,3212.0,2.42250997]
[1642709467433,0.00217043,3212.1,3212.0,0.99684397]
[1642709468636,0.00217043,3212.1,3212.0,2.54080528]
[1642709469036,0.00217043,3212.1,3212.0,7.69732002]
[1642709469239,0.00217043,3212.1,3212.0,4.89080528]
[1642709469478,0.00217043,3212.1,3212.0,8.81211541]
[1642709469881,0.00217043,3212.1,3212.0,8.93661541]
[1642709471489,7.043e-05,3212.1,3212.0,9.71477541]
[1642709471686,7.12610054,3213.6,3212.1,6.2]
[1642709471687,1.53585199,3213.2,3212.1,6.2]
[1642709471887,2.30240423,3213.5,3212.4,2.33401]
[1642709471888,1.53585199,3213.5,3212.4,2.33401]
[1642709472088,0.00511581,3213.0,3212.5,0.5714]
[1642709472285,0.00511581,3213.0,3212.5,2.53822514]
[1642709472485,1.76418706,3212.9,3212.8,7.1344814]
[1642709472688,1.76418706,3212.9,3212.8,9.00720654]
[1642709472887,1.76418706,3212.9,3212.8,9.00720652]
[1642709473759,1.76418706,3212.9,3212.8,8.70720652]
[1642709473960,1.76418706,3212.9,3212.8,11.43729933]
[1642709474159,1.76418706,3212.9,3212.8,12.89312486]
[1642709474760,1.76418706,3212.9,3212.8,16.29312486]
[1642709475260,0.00454738,3212.9,3212.8,15.99312486]
[1642709475459,0.00454738,3212.9,3212.8,16.11762486]
[1642709476560,0.00454738,3212.9,3212.8,16.12014739]
[1642709477479,0.00454738,3212.9,3212.8,9.92014739]
[1642709477682,0.00454738,3212.9,3212.8,7.06555458]
[1642709477887,1.73333045,3212.9,3212.8,6.61855458]
[1642709478092,1.73333045,3212.9,3212.8,6.49405458]
[1642709479087,1.73333045,3212.9,3212.8,6.49405445]
[1642709482736,0.00454738,3212.9,3212.8,6.49405445]
[1642709483738,1.7302004,3212.9,3212.8,6.49405445]
[1642709483944,1.7302004,3212.9,3212.8,4.03822892]
[1642709485784,1.7302004,3212.9,3212.8,4.03822887]
[1642709486285,1.7302004,3212.9,3212.8,3.10374747]
[1642709487889,2.0302004,3212.9,3212.8,3.10374747]
[1642709488735,1.7302004,3212.9,3212.8,3.10374747]
[1642709493583,7.59799555,3212.9,3212.8,3.10374747]
[1642709493789,0.54250077,3212.7,3211.5,0.46353574]
[1642709493987,4.63432472,3212.6,3211.5,0.46353574]
[1642709494186,4.63432472,3212.6,3211.6,0.00284212]
[1642709494187,1.72565302,3212.5,3211.6,0.00284212]
[1642709494386,1.28688957,3212.3,3211.6,0.00284212]
[1642709494585,1.72565302,3212.2,3211.4,0.98011337]
[1642709494787,1.72565302,3212.1,3211.4,0.00397897]
[1642709494985,0.9022,3212.2,3211.5,0.00341054]
[1642709494986,1.72565302,3212.0,3211.5,0.00341054]
[1642709495186,1.72565302,3211.9,3211.2,0.00511582]
[1642709495386,1.72565302,3211.8,3211.2,0.00511582]
[1642709495583,1.72565302,3211.7,3211.2,0.00511582]
[1642709495830,0.2536,3211.9,3211.3,4.1975357]
[1642709496031,1.61168962,3211.8,3211.3,4.1975357]
[1642709496232,1.36168962,3211.8,3211.4,0.00397897]
[1642709496630,1.36168962,3211.8,3211.4,0.00690337]
[1642709497135,1.36168962,3211.8,3211.5,0.00341054]
[1642709501791,1.36168962,3211.8,3211.7,0.00387921]
[1642709501997,1.36168962,3211.8,3211.7,0.00510414]
[1642709502192,1.36168962,3211.8,3211.7,0.00737784]
[1642709503435,5.032,3212.3,3211.7,0.00737784]
[1642709503635,3.7897,3212.3,3211.7,0.00737784]
[1642709503835,3.7897,3212.3,3211.8,0.00170527]
[1642709504033,3.7897,3212.3,3211.8,0.0029302]
[1642709504536,3.7897,3212.3,3211.9,0.00113685]
[1642709504733,3.7897,3212.3,3211.9,0.00236178]
[1642709504934,3.7897,3212.3,3212.0,1.08895885]
[1642709505137,0.00170527,3212.4,3212.0,1.09018378]
[1642709505535,0.00113684,3212.3,3212.0,1.09018378]
[1642709505936,0.00284211,3212.6,3212.0,1.09018378]
[1642709506341,0.00227369,3212.5,3212.0,1.09018378]
[1642709506840,0.00170527,3212.4,3212.2,0.00384591]
[1642709507091,0.00170527,3212.4,3212.2,0.00507084]
[1642709507287,0.00113684,3212.3,3212.2,0.00507084]
[1642709508489,6.20113684,3212.3,3212.2,0.00507084]
[1642709508889,6.50113684,3212.3,3212.2,0.00507084]
[1642709509693,8.03698883,3212.3,3212.2,0.00507084]
[1642709509889,6.50113684,3212.3,3212.2,0.00507084]
[1642709510092,6.50113684,3212.3,3211.9,0.00113685]
[1642709510093,0.00077936,3212.1,3211.9,0.00113685]
[1642709510294,3.88583883,3212.1,3211.9,0.00113685]
[1642709510489,3.88583883,3212.1,3211.1,0.00568424]
[1642709510490,3.50675031,3212.0,3211.1,0.00568424]
[1642709510740,0.243,3211.6,3211.1,0.00568424]
[1642709511438,7.09448701,3212.0,3211.1,0.00568424]
[1642709511638,0.7787718,3211.8,3211.1,0.00568424]
[1642709511837,1.2032718,3211.8,3211.1,0.00568424]
[1642709512038,1.19191903,3211.6,3211.1,0.00568424]
[1642709512436,1.49191903,3211.6,3211.1,0.00568424]
[1642709512637,0.3,3211.6,3211.1,0.00568424]
[1642709512838,0.3,3211.6,3211.2,0.94346187]
[1642709513041,0.3,3211.7,3211.2,0.94346187]
[1642709513238,0.3,3211.7,3211.3,0.00454739]
[1642709513439,0.1245,3211.7,3211.3,0.00454739]
[1642709513638,0.1245,3211.9,3211.3,0.00454739]
[1642709513840,0.1245,3211.9,3211.7,1.13128858]
[1642709514042,0.3,3212.0,3211.7,1.13128858]
[1642709514240,0.3,3212.0,3211.8,0.00170527]
[1642709514241,0.3,3211.9,3211.8,0.00170527]
[1642709514492,0.12527936,3212.1,3211.8,0.00170527]
[1642709516289,0.12527936,3212.1,3211.8,3.10170527]
[1642709516590,1.6766836,3212.0,3211.9,0.00113685]
[1642709517200,0.12527936,3212.1,3211.9,4.01816438]
[1642709517201,0.00077936,3212.1,3211.9,4.01816438]
[1642709517400,0.00077936,3212.1,3211.9,1.00113685]
[1642709517798,0.00077936,3212.1,3212.0,2.75978854]
[1642709518000,0.00077936,3212.1,3212.0,4.4]
[1642709518636,0.00077936,3212.1,3212.0,1.0]
[1642709519035,0.00077936,3212.1,3211.9,0.00113685]
[1642709520439,5.8745,3212.0,3211.9,0.00113685]
[1642709520637,8.00217189,3212.0,3211.9,0.00113685]
[1642709520838,8.30217189,3212.0,3211.9,0.00113685]
[1642709522079,8.30217189,3212.0,3211.9,0.20113685]
[1642709522685,2.55217189,3212.0,3211.9,0.20113685]
[1642709523084,2.10517189,3212.0,3211.9,0.20113685]
[1642709523485,1.80517189,3212.0,3211.9,0.20113685]
[1642709523685,1.68067189,3212.0,3211.9,0.20113685]
[1642709524085,4.68067189,3212.0,3211.9,0.20113685]
[1642709524487,7.59366399,3212.0,3211.8,1.16346262]
[1642709524692,7.59366399,3212.0,3211.0,0.58597441]
[1642709524693,6.2,3211.8,3211.0,0.58597441]
[1642709524891,7.73274779,3211.3,3209.2,0.32449106]
[1642709525092,7.73274779,3211.3,3208.2,0.46934385]
[1642709525093,5.593,3209.8,3208.2,0.46934385]
[1642709525295,3.20532938,3209.7,3208.0,1.0]
[1642709525490,0.447,3209.6,3208.3,0.02046325]
[1642709525747,18.15,3209.2,3208.6,1.01612651]
[1642709525935,18.15,3209.2,3208.3,0.02046325]
[1642709525936,1.65104,3209.1,3208.3,0.02046325]
[1642709526134,0.3,3209.0,3208.7,0.01818955]
[1642709526435,4.75,3208.8,3208.0,0.0001]
[1642709526634,0.5716,3208.9,3208.0,0.0001]
[1642709526635,0.5716,3208.7,3208.6,0.05]
[1642709526936,0.5716,3208.7,3208.6,1.14090147]
[1642709526937,0.00341054,3208.7,3208.6,1.14090147]
[1642709527134,0.00341054,3208.7,3208.6,2.28692679]
[1642709528336,0.00341054,3208.7,3208.6,2.2760944]
[1642709529483,1.76645936,3208.7,3208.6,2.2760944]
[1642709530085,1.76645936,3208.7,3208.6,5.20980736]
[1642709530285,1.76645936,3208.7,3208.6,6.20980736]
[1642709530487,1.76645936,3208.7,3208.6,6.28673035]
[1642709530687,0.00341054,3208.7,3208.6,6.28673035]
[1642709532888,0.00341054,3208.7,3208.6,3.35301739]
[1642709533095,0.00341054,3208.7,3208.6,2.2760944]
[1642709533734,0.00341054,3208.7,3208.6,1.13006908]
[1642709534834,0.00341054,3208.7,3208.6,2.6740943]
[1642709535135,0.00341054,3208.7,3208.6,0.03916761]
[1642709535937,1.76651593,3208.7,3208.6,0.03916761]
[1642709536540,1.76651593,3208.7,3208.6,3.13916761]
[1642709538393,1.76651593,3208.7,3208.6,1.90500827]
[1642709538991,1.71651593,3208.7,3208.6,1.90500827]
[1642709539592,8.53945294,3209.4,3208.6,1.90500827]
[1642709539793,4.53145294,3209.4,3208.6,1.90500827]
[1642709539993,0.00341054,3209.3,3208.6,1.90500827]
[1642709540394,0.00284212,3209.2,3208.9,0.81863368]
[1642709540599,0.00284212,3209.2,3208.6,1.90500827]
[1642709540839,0.00227369,3209.1,3208.6,1.90500827]
[1642709541240,1.526246,3209.5,3208.6,1.90500827]
[1642709541241,0.00170527,3209.0,3208.6,1.90500827]
[1642709541640,0.00113685,3208.9,3208.7,1.04541272]
[1642709542042,0.00397896,3209.4,3208.7,1.04541272]
[1642709542241,0.57557896,3209.4,3208.7,1.04541272]
[1642709543243,0.12857896,3209.4,3208.7,1.04541272]
[1642709543442,0.00397896,3209.4,3208.7,1.04541272]
[1642709544247,1.550061,3209.4,3208.7,1.04541272]
[1642709544486,19.7087305,3209.3,3208.6,1.90500827]
[1642709544687,1.2039553,3209.3,3208.6,1.90500827]
[1642709544888,1.30284212,3209.2,3208.6,1.90500827]
[1642709545087,0.1246,3209.1,3208.6,1.90500827]
[1642709545286,0.00227369,3209.1,3208.6,1.90500827]
[1642709545486,0.00170527,3209.0,3208.6,1.90500827]
[1642709545886,0.00113685,3208.9,3208.6,1.90500827]
[1642709546290,0.9039129,3209.2,3208.6,3.29933901]
[1642709546291,0.00227369,3209.1,3208.6,3.29933901]
[1642709546789,0.00170527,3209.0,3208.6,1.90500827]
[1642709547191,0.1246,3209.2,3208.6,1.90500827]
[1642709547192,0.00113685,3208.9,3208.6,1.90500827]
[1642709547592,0.00227369,3209.1,3208.6,1.90500827]
[1642709547993,0.00170527,3209.0,3208.6,1.90500827]
[1642709548439,0.00113685,3208.9,3208.6,1.90500827]
[1642709548942,0.12687369,3209.1,3208.6,1.90500827]
[1642709549339,0.00170527,3209.0,3208.6,1.90500827]
[1642709549739,0.00113685,3208.9,3208.6,1.90500827]
[1642709550142,0.44870527,3209.0,3208.6,1.90500827]
[1642709550341,0.30170527,3209.0,3208.6,1.90500827]
[1642709550539,0.00113685,3208.9,3208.6,1.90500827]
[1642709550941,2.56272647,3209.4,3208.7,0.93510208]
[1642709550942,0.00227369,3209.1,3208.7,0.93510208]
[1642709551142,0.00227369,3209.1,3208.6,1.90500827]
[1642709551351,0.00170527,3209.0,3208.6,1.90500827]
[1642709551743,0.00113685,3208.9,3208.6,1.90500827]
[1642709552183,0.00284212,3209.2,3208.6,1.90500827]
[1642709552384,0.44984212,3209.2,3208.6,1.90500827]
[1642709552583,0.00227369,3209.1,3208.6,1.90500827]
[1642709552987,0.00170527,3209.0,3208.6,1.90500827]
[1642709553387,0.00113685,3208.9,3208.6,1.90500827]
[1642709553687,0.00227369,3209.1,3208.6,1.90500827]
[1642709554090,0.00170527,3209.0,3208.6,1.90500827]
[1642709554486,0.00113685,3208.9,3208.6,1.90500827]
[1642709554887,0.3,3209.2,3208.6,1.90500827]
[1642709554888,0.447,3208.8,3208.6,1.90500827]
[1642709555487,0.747,3208.8,3208.6,1.85500827]
[1642709557037,0.447,3208.8,3208.6,1.85500827]
[1642709559042,0.747,3208.8,3208.6,1.85500827]
[1642709559249,0.447,3208.8,3208.6,1.85500827]
[1642709562693,0.747,3208.8,3208.6,1.85500827]
[1642709565344,10.85975787,3208.7,3208.6,1.85500827]
[1642709565541,12.43135787,3208.7,3208.6,1.85500827]
[1642709565741,9.51635782,3208.7,3208.6,1.85500827]
[1642709566341,4.21635782,3208.7,3208.6,1.85500827]
[1642709566741,4.37153782,3208.7,3208.6,1.85500827]
[1642709567194,3.21635782,3208.7,3208.6,1.85500827]
[1642709567993,3.09175782,3208.7,3208.6,1.85500827]
[1642709570293,3.21635782,3208.7,3208.6,1.85500827]
[1642709571539,3.09175782,3208.7,3208.6,1.85500827]
[1642709573143,3.09175782,3208.7,3208.6,1.65500827]
[1642709573749,5.44175782,3208.7,3208.6,1.65500827]
[1642709574149,3.09175782,3208.7,3208.6,1.65500827]
[1642709574489,3.21635782,3208.7,3208.6,1.65500827]
[1642709576691,7.06635782,3208.7,3208.6,1.65500827]
[1642709577095,8.22153782,3208.7,3208.6,1.65500827]
[1642709577294,9.73770358,3208.7,3208.6,1.65500827]
[1642709577696,5.73252358,3208.7,3208.6,1.65500827]
[1642709578100,8.67991684,3208.7,3208.6,1.65500827]
[1642709578341,26.82991684,3208.7,3208.6,1.65500827]
[1642709578542,8.67991684,3208.7,3208.6,1.65500827]
[1642709578740,26.82991684,3208.7,3208.6,1.65500827]
[1642709579341,25.31375108,3208.7,3208.6,1.65500827]
[1642709579942,27.07721259,3208.7,3208.6,1.65500827]
[1642709580545,8.92721259,3208.7,3208.6,1.65500827]
[1642709580842,27.07721259,3208.7,3208.6,1.65500827]
[1642709581444,27.23239259,3208.7,3208.6,1.65500827]